fUST/lending_fUST_20250707
["ID","MTS","AMOUNT","RATE_DAILY","PERIOD"]
[370085637,1751877054007,-460.0,0.00016975,2]
[370085638,1751877054017,-460.0,0.00016975,2]
[370085639,1751877054028,-460.0,0.00016975,2]
[370085640,1751877054039,-460.0,0.00016975,2]
[370085641,1751877054055,-583.04,0.00016975,2]
[370085642,1751877054067,-460.0,0.00016975,2]
[370085643,1751877054077,-460.0,0.00016975,2]
[370085644,1751877054088,-460.0,0.00016975,2]
[370085645,1751877054240,-460.0,0.00016975,2]
[370085646,1751877054251,-1401.41,0.00016975,2]
[370085647,1751877054261,-460.0,0.00016975,2]
[370085648,1751877054270,-460.0,0.00016975,2]
[370085649,1751877054280,-460.0,0.00016975,2]
[370085650,1751877054289,-851.01,0.00016975,2]
[370085651,1751877054301,-733.17,0.00016975,2]
[370085652,1751877054310,-460.0,0.00016975,2]
[370085653,1751877054320,-460.0,0.00016975,2]
[370085654,1751877054330,-460.0,0.00016975,2]
[370085655,1751877054339,-975.96,0.00016975,2]
[370085656,1751877054349,-460.0,0.00016975,2]
[370085657,1751877054359,-460.0,0.00016975,2]
[370085658,1751877054369,-460.0,0.00016975,2]
[370085659,1751877054379,-460.0,0.00016975,2]
[370085660,1751877054388,-460.0,0.00016975,2]
[370085661,1751877054398,-460.0,0.00016975,2]
[370085662,1751877054407,-460.0,0.00016975,2]
[370085663,1751877054417,-460.0,0.00016975,2]
[370085664,1751877054429,-460.0,0.00016975,2]
[370085665,1751877054438,-460.0,0.00016975,2]
[370085666,1751877054447,-460.0,0.00016975,2]
[370085667,1751877054458,-926.89,0.00016975,2]
[370085668,1751877054467,-2609.65,0.00016975,2]
[370085669,1751877054478,-460.0,0.00016975,2]
[370085670,1751877054487,-460.0,0.00016975,2]
[370085671,1751877054497,-460.0,0.00016975,2]
[370085672,1751877054509,-522.08,0.00016975,2]
[370085673,1751877054520,-460.0,0.00016975,2]
[370085674,1751877054530,-460.0,0.00016975,2]
[370085675,1751877054540,-460.0,0.00016975,2]
[370085676,1751877054550,-460.0,0.00016975,2]
[370085677,1751877054560,-460.0,0.00016975,2]
[370085678,1751877054569,-460.0,0.00016975,2]
[370085679,1751877054579,-460.0,0.00016975,2]
[370085680,1751877054589,-460.0,0.00016975,2]
[370085681,1751877054599,-460.0,0.00016975,2]
[370085682,1751877054608,-460.0,0.00016975,2]
[370085683,1751877054618,-460.0,0.00016975,2]
[370085684,1751877054627,-460.0,0.00016975,2]
[370085685,1751877054636,-460.0,0.00016975,2]
[370085686,1751877054646,-460.0,0.00016975,2]
[370085687,1751877054655,-1284.3,0.00016975,2]
[370085688,1751877054665,-460.0,0.00016975,2]
[370085689,1751877054674,-541.1,0.00016975,2]
[370085690,1751877054684,-460.0,0.00016975,2]
[370085691,1751877054693,-460.0,0.00016975,2]
[370085692,1751877054703,-460.0,0.00016975,2]
[370085693,1751877054713,-1434.17,0.00016975,2]
[370085694,1751877054722,-460.0,0.00016975,2]
[370085695,1751877054731,-460.0,0.00016975,2]
[370085696,1751877054740,-460.0,0.00016975,2]
[370085697,1751877054750,-460.0,0.00016975,2]
[370085698,1751877054759,-460.0,0.00016975,2]
[370085699,1751877054769,-460.0,0.00016975,2]
[370085700,1751877054778,-556.18,0.00016975,2]
[370085701,1751877054788,-460.0,0.00016975,2]
[370085702,1751877054799,-1521.68,0.00016975,2]
[370085703,1751877054808,-500.0,0.00016975,2]
[370085704,1751877054818,-169.23852414,0.00016976,2]
[370085705,1751877054827,-364.0,0.00016978,2]
[370085706,1751877054836,-151.0,0.00017,2]
[370085707,1751877054846,-151.0,0.00017,2]
[370085708,1751877054855,-151.0,0.00017,2]
[370085709,1751877054864,-151.0,0.00017,2]
[370085710,1751877054874,-2072.74740299,0.00017,2]
[370085711,1751877054883,-38532.5965808,0.00017,2]
[370085712,1751877054893,-528.3,0.00017071,2]
[370085713,1751877054902,-2030.4,0.00017072,2]
[370085714,1751877054911,-2047.12,0.00017072,2]
[370085715,1751877054921,-500.0,0.00017073,2]
[370085716,1751877054931,-500.0,0.00017073,2]
[370085717,1751877054941,-500.0,0.00017073,2]
[370085718,1751877054951,-500.52838055,0.00017073,2]
[370085719,1751877054960,-624.7127796,0.00017073,2]
[370085720,1751877054970,-473.84594513,0.00017073,2]
[370085721,1751877054980,-500.0,0.00017073,2]
[370085722,1751877054990,-500.0,0.00017073,2]
[370085723,1751877055000,-500.85840275,0.00017073,2]
[370085724,1751877055009,-500.0,0.00017073,2]
[370085725,1751877055019,-500.0,0.00017073,2]
[370085726,1751877055028,-500.0,0.00017073,2]
[370085727,1751877055037,-460.0,0.00017074,2]
[370085728,1751877055047,-460.0,0.00017074,2]
[370085729,1751877055057,-460.0,0.00017074,2]
[370085730,1751877055067,-460.0,0.00017074,2]
[370085731,1751877055076,-460.0,0.00017074,2]
[370085732,1751877055085,-460.0,0.00017074,2]
[370085733,1751877055095,-460.0,0.00017074,2]
[370085734,1751877055105,-460.0,0.00017074,2]
[370085735,1751877055115,-460.0,0.00017074,2]
[370085736,1751877055125,-460.0,0.00017074,2]
[370085737,1751877055134,-460.0,0.00017074,2]
[370085738,1751877055144,-528.3,0.00017074,2]
[370085739,1751877055153,-528.3,0.00017074,2]
[370085740,1751877055163,-528.3,0.00017074,2]
[370085741,1751877055172,-528.3,0.00017074,2]
[370085742,1751877055182,-528.3,0.00017074,2]
[370085743,1751877055191,-528.3,0.00017074,2]
[370085744,1751877055201,-528.38152157,0.00017074,2]
[370085745,1751877055210,-460.0,0.00017075,2]
[370085746,1751877055220,-460.0,0.00017075,2]
[370085747,1751877055230,-298.56453496,0.00017075,2]
[370085748,1751877055239,-457.59336901,0.00017075,2]
[370085749,1751877055249,-460.0,0.00017075,2]
[370085750,1751877055259,-460.0,0.00017075,2]
[370085751,1751877055268,-460.0,0.00017075,2]
[370085752,1751877055278,-460.0,0.00017075,2]
[370085753,1751877055288,-460.0,0.00017075,2]
[370085754,1751877055298,-460.0,0.00017075,2]
[370085755,1751877055308,-276.90446374,0.00017075,2]
[370085756,1751877055317,-460.0,0.00017075,2]
[370085757,1751877055327,-460.0,0.00017075,2]
[370085758,1751877055337,-460.0,0.00017075,2]
[370085759,1751877055346,-460.0,0.00017075,2]
[370085760,1751877055356,-460.0,0.00017075,2]
[370085761,1751877055366,-460.0,0.00017075,2]
[370085762,1751877055375,-460.0,0.00017075,2]
[370085763,1751877055385,-460.0,0.00017075,2]
[370085764,1751877055395,-460.0,0.00017075,2]
[370085765,1751877055404,-460.0,0.00017075,2]
[370085766,1751877055413,-460.0,0.00017075,2]
[370085767,1751877055424,-460.0,0.00017075,2]
[370085768,1751877055435,-460.0,0.00017075,2]
[370085769,1751877055444,-460.0,0.00017075,2]
[370085770,1751877055454,-460.0,0.00017075,2]
[370085771,1751877055464,-460.0,0.00017075,2]
[370085772,1751877055474,-460.0,0.00017075,2]
[370085773,1751877055483,-460.0,0.00017075,2]
[370085774,1751877055492,-460.0,0.00017075,2]
[370085775,1751877055503,-460.0,0.00017075,2]
[370085776,1751877055513,-460.0,0.00017075,2]
[370085777,1751877055523,-460.0,0.00017075,2]
[370085778,1751877055532,-460.0,0.00017075,2]
[370085779,1751877055542,-481.06,0.00017075,2]
[370085780,1751877055552,-460.0,0.00017075,2]
[370085781,1751877055562,-519.91,0.00017075,2]
[370085782,1751877055572,-500.91,0.00017075,2]
[370085783,1751877055581,-460.0,0.00017075,2]
[370085784,1751877055591,-460.0,0.00017075,2]
[370085785,1751877055601,-460.0,0.00017075,2]
[370085786,1751877055610,-460.0,0.00017075,2]
[370085787,1751877055620,-460.0,0.00017075,2]
[370085788,1751877055630,-460.0,0.00017075,2]
[370085789,1751877055639,-460.0,0.00017075,2]
[370085790,1751877055648,-460.0,0.00017075,2]
[370085791,1751877055657,-460.0,0.00017075,2]
[370085792,1751877055667,-632.5,0.00017075,2]
[370085793,1751877055676,-460.0,0.00017075,2]
[370085794,1751877055685,-460.0,0.00017075,2]
[370085795,1751877055695,-460.0,0.00017075,2]
[370085796,1751877055704,-617.01,0.00017075,2]
[370085797,1751877055713,-460.0,0.00017075,2]
[370085798,1751877055723,-289.77978942,0.00017075,2]
[370085799,1751877055733,-460.0,0.00017075,2]
[370085800,1751877055742,-460.0,0.00017075,2]
[370085801,1751877055751,-500.0,0.00017075,2]
[370085802,1751877055761,-460.0,0.00017075,2]
[370085803,1751877055770,-460.0,0.00017075,2]
[370085804,1751877055779,-460.0,0.00017075,2]
[370085805,1751877055788,-460.0,0.00017075,2]
[370085806,1751877055798,-411.56143138,0.00017075,2]
[370085807,1751877055808,-460.0,0.00017075,2]
[370085808,1751877055817,-460.0,0.00017075,2]
[370085809,1751877055826,-460.0,0.00017075,2]
[370085810,1751877055836,-460.0,0.00017075,2]
[370085811,1751877055845,-460.0,0.00017075,2]
[370085812,1751877055855,-421.79513486,0.00017075,2]
[370085813,1751877055864,-460.0,0.00017075,2]
[370085814,1751877055873,-460.0,0.00017075,2]
[370085815,1751877055883,-460.0,0.00017075,2]
[370085816,1751877055892,-460.0,0.00017075,2]
[370085817,1751877055902,-601.01,0.00017075,2]
[370085818,1751877055911,-509.38,0.00017075,2]
[370085819,1751877055921,-460.0,0.00017075,2]
[370085820,1751877055930,-460.0,0.00017075,2]
[370085821,1751877055940,-460.0,0.00017075,2]
[370085822,1751877055949,-460.0,0.00017075,2]
[370085823,1751877055958,-385.69904935,0.00017075,2]
[370085824,1751877055968,-460.0,0.00017075,2]
[370085825,1751877055978,-606.94,0.00017075,2]
[370085826,1751877055987,-460.0,0.00017075,2]
[370085827,1751877055997,-460.0,0.00017075,2]
[370085828,1751877056007,-460.16,0.00017075,2]
[370085829,1751877056017,-460.0,0.00017075,2]
[370085830,1751877056026,-460.0,0.00017075,2]
[370085831,1751877056036,-460.0,0.00017075,2]
[370085832,1751877056045,-462.23366557,0.00017075,2]
[370085833,1751877056056,-460.0,0.00017075,2]
[370085834,1751877056066,-460.0,0.00017075,2]
[370085835,1751877056075,-524.16128137,0.00017075,2]
[370085836,1751877056085,-460.0,0.00017075,2]
[370085837,1751877056094,-460.0,0.00017075,2]
[370085838,1751877056104,-460.0,0.00017075,2]
[370085839,1751877056113,-460.0,0.00017075,2]
[370085840,1751877056122,-460.0,0.00017075,2]
[370085841,1751877056132,-460.37134518,0.00017075,2]
[370085842,1751877056141,-460.0,0.00017075,2]
[370085843,1751877056151,-460.0,0.00017075,2]
[370085844,1751877056160,-460.0,0.00017075,2]
[370085845,1751877056169,-460.0,0.00017075,2]
[370085846,1751877056179,-460.0,0.00017075,2]
[370085847,1751877056189,-460.0,0.00017075,2]
[370085848,1751877056199,-460.0,0.00017075,2]
[370085849,1751877056208,-460.0,0.00017075,2]
[370085850,1751877056218,-460.0,0.00017075,2]
[370085851,1751877056228,-361.92834377,0.00017075,2]
[370085852,1751877056238,-285.72477329,0.00017075,2]
[370085853,1751877056248,-460.0,0.00017075,2]
[370085854,1751877056258,-460.0,0.00017075,2]
[370085855,1751877056267,-1269.23,0.00017075,2]
[370085856,1751877056277,-460.0,0.00017075,2]
[370085857,1751877056287,-460.0,0.00017075,2]
[370085858,1751877056297,-460.0,0.00017075,2]
[370085859,1751877056308,-460.0,0.00017075,2]
[370085860,1751877056317,-460.0,0.00017075,2]
[370085861,1751877056327,-675.36,0.00017075,2]
[370085862,1751877056336,-460.0,0.00017075,2]
[370085863,1751877056345,-614.46,0.00017075,2]
[370085864,1751877056355,-460.0,0.00017075,2]
[370085865,1751877056367,-460.0,0.00017075,2]
[370085866,1751877056377,-460.0,0.00017075,2]
[370085867,1751877056387,-460.0,0.00017075,2]
[370085868,1751877056396,-460.0,0.00017075,2]
[370085869,1751877056406,-460.0,0.00017075,2]
[370085870,1751877056416,-460.0,0.00017075,2]
[370085871,1751877056431,-460.0,0.00017075,2]
[370085872,1751877056441,-460.0,0.00017075,2]
[370085873,1751877056450,-460.0,0.00017075,2]
[370085874,1751877056460,-460.0,0.00017075,2]
[370085875,1751877056470,-460.0,0.00017075,2]
[370085876,1751877056480,-460.0,0.00017075,2]
[370085877,1751877056489,-460.0,0.00017075,2]
[370085878,1751877056499,-270.0,0.00017075,2]
[370085879,1751877056509,-460.0,0.00017075,2]
[370085880,1751877056519,-460.0,0.00017075,2]
[370085881,1751877056528,-460.0,0.00017075,2]
[370085882,1751877056537,-498.33,0.00017075,2]
[370085883,1751877056547,-601.03892786,0.00017075,2]
[370085884,1751877056557,-460.0,0.00017075,2]
[370085885,1751877056566,-573.65,0.00017075,2]
[370085886,1751877056576,-460.0,0.00017075,2]
[370085887,1751877056722,-460.0,0.00017075,2]
[370085888,1751877056732,-460.0,0.00017075,2]
[370085889,1751877056741,-460.0,0.00017075,2]
[370085890,1751877056751,-460.0,0.00017075,2]
[370085891,1751877056760,-460.0,0.00017075,2]
[370085892,1751877056769,-275.90468185,0.00017075,2]
[370085893,1751877056779,-460.0,0.00017075,2]
[370085894,1751877056788,-460.69625442,0.00017075,2]
[370085895,1751877056799,-460.0,0.00017075,2]
[370085896,1751877056808,-460.0,0.00017075,2]
[370085897,1751877056817,-521.97001399,0.00017075,2]
[370085898,1751877056827,-460.0,0.00017075,2]
[370085899,1751877056836,-460.0,0.00017075,2]
[370085900,1751877056845,-460.0,0.00017075,2]
[370085901,1751877056854,-460.0,0.00017075,2]
[370085902,1751877056863,-460.0,0.00017075,2]
[370085903,1751877056873,-279.22018553,0.00017075,2]
[370085904,1751877056882,-460.0,0.00017075,2]
[370085905,1751877056891,-460.0,0.00017075,2]
[370085906,1751877056900,-460.0,0.00017075,2]
[370085907,1751877056910,-460.0,0.00017075,2]
[370085908,1751877056919,-460.0,0.00017075,2]
[370085909,1751877056929,-460.0,0.00017075,2]
[370085910,1751877056940,-1394.03,0.00017075,2]
[370085911,1751877056950,-460.0,0.00017075,2]
[370085912,1751877056959,-460.0,0.00017075,2]
[370085913,1751877056969,-460.0,0.00017075,2]
[370085914,1751877056979,-460.0,0.00017075,2]
[370085915,1751877056988,-828.89,0.00017075,2]
[370085916,1751877056998,-460.0,0.00017075,2]
[370085917,1751877057008,-460.0,0.00017075,2]
[370085918,1751877057018,-460.0,0.00017075,2]
[370085919,1751877057027,-460.0,0.00017075,2]
[370085920,1751877057037,-460.0,0.00017075,2]
[370085921,1751877057047,-460.0,0.00017075,2]
[370085922,1751877057056,-460.0,0.00017075,2]
[370085923,1751877057066,-460.0,0.00017075,2]
[370085924,1751877057075,-493.05,0.00017075,2]
[370085925,1751877057085,-460.0,0.00017075,2]
[370085926,1751877057096,-460.0,0.00017075,2]
[370085927,1751877057105,-460.0,0.00017075,2]
[370085928,1751877057115,-1144.59,0.00017075,2]
[370085929,1751877057124,-460.0,0.00017075,2]
[370085930,1751877057133,-460.0,0.00017075,2]
[370085931,1751877057142,-460.0,0.00017075,2]
[370085932,1751877057152,-460.0,0.00017075,2]
[370085933,1751877057161,-460.0,0.00017075,2]
[370085934,1751877057170,-460.0,0.00017075,2]
[370085935,1751877057179,-460.0,0.00017075,2]
[370085936,1751877057188,-497.46,0.00017075,2]
[370085937,1751877057197,-460.0,0.00017075,2]
[370085938,1751877057207,-460.0,0.00017075,2]
[370085939,1751877057216,-460.0,0.00017075,2]
[370085940,1751877057225,-460.0,0.00017075,2]
[370085941,1751877057234,-460.0,0.00017075,2]
[370085942,1751877057243,-460.0,0.00017075,2]
[370085943,1751877057253,-460.0,0.00017075,2]
[370085944,1751877057262,-460.0,0.00017075,2]
[370085945,1751877057271,-460.0,0.00017075,2]
[370085946,1751877057280,-460.0,0.00017075,2]
[370085947,1751877057289,-460.0,0.00017075,2]
[370085948,1751877057299,-475.48,0.00017075,2]
[370085949,1751877057308,-460.0,0.00017075,2]
[370085950,1751877057318,-460.0,0.00017075,2]
[370085951,1751877057327,-460.0,0.00017075,2]
[370085952,1751877057336,-517.98,0.00017075,2]
[370085953,1751877057345,-461.57756797,0.00017075,2]
[370085954,1751877057355,-566.12,0.00017075,2]
[370085955,1751877057364,-460.0,0.00017075,2]
[370085956,1751877057373,-460.0,0.00017075,2]
[370085957,1751877057383,-460.0,0.00017075,2]
[370085958,1751877057395,-460.0,0.00017075,2]
[370085959,1751877057404,-460.0,0.00017075,2]
[370085960,1751877057414,-2164.03,0.00017075,2]
[370085961,1751877057425,-460.0,0.00017075,2]
[370085962,1751877057435,-460.0,0.00017075,2]
[370085963,1751877057444,-460.0,0.00017075,2]
[370085964,1751877057454,-460.0,0.00017075,2]
[370085965,1751877057463,-460.0,0.00017075,2]
[370085966,1751877057473,-500.0,0.00017075,2]
[370085967,1751877057483,-460.0,0.00017075,2]
[370085968,1751877057492,-460.0,0.00017075,2]
[370085969,1751877057502,-460.0,0.00017075,2]
[370085970,1751877057513,-460.0,0.00017075,2]
[370085971,1751877057522,-798.24,0.00017075,2]
[370085972,1751877057531,-460.0,0.00017075,2]
[370085973,1751877057541,-460.0,0.00017075,2]
[370085974,1751877057553,-460.0,0.00017075,2]
[370085975,1751877057563,-1794.03,0.00017075,2]
[370085976,1751877057572,-621.56,0.00017075,2]
[370085977,1751877057582,-460.0,0.00017075,2]
[370085978,1751877057592,-521.32,0.00017075,2]
[370085979,1751877057601,-1211.06,0.00017075,2]
[370085980,1751877057611,-460.0,0.00017075,2]
[370085981,1751877057620,-594.57,0.00017075,2]
[370085982,1751877057629,-685.69,0.00017075,2]
[370085983,1751877057638,-460.0,0.00017075,2]
[370085984,1751877057647,-517.5,0.00017075,2]
[370085985,1751877057656,-193.38674981,0.00017075,2]
[370085986,1751877057665,-460.0,0.00017075,2]
[370085987,1751877057675,-460.0,0.00017075,2]
[370085988,1751877057684,-1015.97,0.00017075,2]
[370085989,1751877057693,-460.0,0.00017075,2]
[370085990,1751877057702,-575.0,0.00017075,2]
[370085991,1751877057711,-460.0,0.00017075,2]
[370085992,1751877057720,-460.0,0.00017075,2]
[370085993,1751877057729,-460.0,0.00017075,2]
[370085994,1751877057739,-460.0,0.00017075,2]
[370085995,1751877057748,-460.0,0.00017075,2]
[370085996,1751877057758,-460.0,0.00017075,2]
[370085997,1751877057767,-460.0,0.00017075,2]
[370085998,1751877057777,-590.32,0.00017075,2]
[370085999,1751877057786,-460.0,0.00017075,2]
[370086000,1751877057795,-460.0,0.00017075,2]
[370086001,1751877057805,-461.27,0.00017075,2]
[370086002,1751877057814,-460.0,0.00017075,2]
[370086003,1751877057823,-2030.4,0.00017076,2]
[370086004,1751877057832,-2030.4,0.00017076,2]
[370086005,1751877057842,-2030.4,0.00017076,2]
[370086006,1751877057852,-2047.12,0.00017076,2]
[370086007,1751877057861,-2047.12,0.00017076,2]
[370086008,1751877057870,-2047.12,0.00017076,2]
[370086009,1751877057880,-2030.4,0.00017077,2]
[370086010,1751877057889,-2047.12,0.00017077,2]
[370086011,1751877057898,-2030.4,0.00017078,2]
[370086012,1751877057908,-2047.12,0.00017078,2]
[370086013,1751877057917,-2030.4,0.00017079,2]
[370086014,1751877057927,-2047.12,0.00017079,2]
[370086015,1751877057936,-4251.27441494,0.00017086,2]
[370086016,1751877057946,-151.0,0.000171,2]
[370086017,1751877057955,-151.0,0.000171,2]
[370086018,1751877057965,-437.0,0.00017122,2]
[370086019,1751877057975,-151.0,0.000172,2]
[370086020,1751877057984,-151.0,0.000172,2]
[370086021,1751877057994,-151.0,0.000172,2]
[370086022,1751877058003,-460.0,0.00017243,2]
[370086023,1751877058013,-460.0,0.00017243,2]
[370086024,1751877058022,-460.0,0.00017243,2]
[370086025,1751877058031,-460.0,0.00017243,2]
[370086026,1751877058041,-460.0,0.00017243,2]
[370086027,1751877058051,-460.0,0.00017243,2]
[370086028,1751877058060,-536.26,0.00017243,2]
[370086029,1751877058072,-349.79846056,0.00017243,2]
[370086030,1751877058082,-460.0,0.00017243,2]
[370086031,1751877058092,-532.2,0.00017243,2]
[370086032,1751877058102,-460.0,0.00017243,2]
[370086033,1751877058111,-460.0,0.00017243,2]
[370086034,1751877058124,-1502.93,0.00017243,2]
[370086035,1751877058133,-462.66,0.00017243,2]
[370086036,1751877058143,-460.0,0.00017243,2]
[370086037,1751877058152,-182.34718454,0.00017243,2]
[370086038,1751877058163,-460.0,0.00017243,2]
[370086039,1751877058172,-460.0,0.00017243,2]
[370086040,1751877058182,-460.0,0.00017243,2]
[370086041,1751877058192,-510.10745834,0.00017243,2]
[370086042,1751877058202,-460.0,0.00017243,2]
[370086043,1751877058212,-6175.22,0.00017243,2]
[370086044,1751877058221,-460.0,0.00017245,2]
[370086045,1751877058231,-460.0,0.00017245,2]
[370086046,1751877058241,-460.0,0.00017245,2]
[370086047,1751877058251,-464.78339877,0.00017245,2]
[370086048,1751877058261,-460.0,0.00017245,2]
[370086049,1751877058271,-460.0,0.00017245,2]
[370086050,1751877058281,-575.59,0.00017245,2]
[370086051,1751877058291,-257.98976423,0.00017245,2]
[370086052,1751877058301,-460.0,0.00017245,2]
[370086053,1751877058310,-460.0,0.00017245,2]
[370086054,1751877058319,-460.0,0.00017245,2]
[370086055,1751877058328,-460.0,0.00017245,2]
[370086056,1751877058337,-603.91025886,0.00017245,2]
[370086057,1751877058347,-460.0,0.00017245,2]
[370086058,1751877058355,-460.0,0.00017245,2]
[370086059,1751877058364,-522.78393968,0.00017245,2]
[370086060,1751877058373,-460.0,0.00017245,2]
[370086061,1751877058382,-460.0,0.00017245,2]
[370086062,1751877058391,-460.0,0.00017245,2]
[370086063,1751877058401,-460.0,0.00017245,2]
[370086064,1751877058410,-1000.0,0.00017246,2]
[370086065,1751877058420,-460.0,0.00017246,2]
[370086066,1751877058433,-460.0,0.00017246,2]
[370086067,1751877058443,-460.0,0.00017246,2]
[370086068,1751877058452,-460.0,0.00017246,2]
[370086069,1751877058461,-571.4,0.00017246,2]
[370086070,1751877058472,-498.33,0.00017246,2]
[370086071,1751877058481,-460.0,0.00017246,2]
[370086072,1751877058491,-460.0,0.00017246,2]
[370086073,1751877058503,-370.47123315,0.00017246,2]
[370086074,1751877058512,-460.0,0.00017246,2]
[370086075,1751877058521,-460.0,0.00017246,2]
[370086076,1751877058531,-3213.85,0.00017246,2]
[370086077,1751877058541,-161.77780967,0.00017246,2]
[370086078,1751877059049,-298.22219033,0.00017246,2]
[370086079,1751877059058,-500.35,0.00017246,2]
[370086080,1751877059068,-460.0,0.00017246,2]
[370086081,1751877059078,-2819.42780967,0.00017246,2]
[370086082,1751877059365,-460.0,0.00016695,2]
[370086083,1751877059374,-460.0,0.00016969,2]
[370086084,1751877059384,-460.0,0.00017243,2]
[370086085,1751877059393,-1221.1,0.00017246,2]
[370086086,1751877059405,-497.15219033,0.00017246,2]
[370086087,1751877059414,-720.44760139,0.00017246,2]
[370086089,1751877061399,-47.28239861,0.00017246,2]
[370086090,1751877061409,-272.14744228,0.00017246,2]
[370086091,1751877061442,-187.85255772,0.00017246,2]
[370086092,1751877061451,-460.0,0.00017246,2]
[370086093,1751877061461,-593.03,0.00017246,2]
[370086094,1751877061471,-460.0,0.00017246,2]
[370086095,1751877061479,-460.0,0.00017246,2]
[370086096,1751877061489,-460.0,0.00017246,2]
[370086097,1751877061499,-7550.72,0.00017246,2]
[370086098,1751877061509,-923.03,0.00017246,2]
[370086099,1751877061519,-3348.58,0.00017246,2]
[370086100,1751877061528,-613.95,0.00017246,2]
[370086101,1751877061537,-465.57100272,0.00017246,2]
[370086102,1751877061547,-597.71,0.00017246,2]
[370086103,1751877061556,-1086.64724256,0.00017246,2]
[370086104,1751877061931,-460.0,0.00016695,2]
[370086105,1751877061941,-38.70507329,0.00016698,2]
[370086106,1751877062352,-421.29492671,0.00016698,2]
[370086107,1751877062363,-460.0,0.00016698,2]
[370086108,1751877062372,-153.44230181,0.00016698,2]
[370086109,1751877062382,-421.64409149,0.000167,2]
[370086110,1751877062392,-460.0,0.00016969,2]
[370086111,1751877062401,-460.0,0.00017243,2]
[370086112,1751877062412,-763.52787648,0.00017246,2]
[370086113,1751877062424,-2035.29488096,0.00017246,2]
[370086114,1751877062437,-1314.76,0.00017246,2]
[370086115,1751877062447,-460.0,0.00017246,2]
[370086116,1751877062457,-460.0,0.00017246,2]
[370086117,1751877062467,-460.0,0.00017246,2]
[370086118,1751877062477,-460.0,0.00017246,2]
[370086119,1751877062487,-460.0,0.00017246,2]
[370086120,1751877062498,-460.0,0.00017246,2]
[370086121,1751877062509,-1098.02,0.00017246,2]
[370086122,1751877062519,-811.59,0.00017246,2]
[370086123,1751877062530,-460.0,0.00017247,2]
[370086124,1751877062541,-188.69306722,0.00017247,2]
[370086125,1751877062552,-460.0,0.00017247,2]
[370086126,1751877062562,-460.0,0.00017247,2]
[370086127,1751877062572,-460.0,0.00017247,2]
[370086128,1751877062582,-460.0,0.00017247,2]
[370086129,1751877062592,-460.0,0.00017247,2]
[370086130,1751877062602,-460.0,0.00017247,2]
[370086131,1751877062612,-460.0,0.00017247,2]
[370086132,1751877062622,-460.0,0.00017247,2]
[370086133,1751877062632,-460.0,0.00017247,2]
[370086134,1751877062642,-460.0,0.00017247,2]
[370086135,1751877062652,-460.0,0.00017247,2]
[370086136,1751877062661,-460.0,0.00017247,2]
[370086137,1751877062672,-460.70806726,0.00017247,2]